[Event "Late-Titled-Tuesday-Blitz-August-29-2023"]
[Site "Chess.com"]
[Date "2023.08.29"]
[Round "5"]
[White "Semetey"]
[Black "jcreyes69"]
[Result "1-0"]
[WhiteElo "2587"]
[BlackElo "2356"]
[TimeControl "180+1"]
[EndTime "14:53:34 PDT"]
[Termination "Semetey won by resignation"]

1. e4 {[%clk 0:02:52.3]} 1... c5 {[%clk 0:02:59.1]} 2. Nf3 {[%clk 0:02:52.4]}
2... e6 {[%clk 0:02:58.8]} 3. d4 {[%clk 0:02:53.3]} 3... cxd4 {[%clk 0:02:59.4]}
4. Nxd4 {[%clk 0:02:53.8]} 4... Nc6 {[%clk 0:03:00]} 5. Nc3 {[%clk 0:02:53.9]}
5... Qc7 {[%clk 0:03:00.3]} 6. g3 {[%clk 0:02:53.1]} 6... a6 {[%clk 0:02:58.5]}
7. Bg2 {[%clk 0:02:53.1]} 7... d6 {[%clk 0:02:46.5]} 8. O-O {[%clk 0:02:52.2]}
8... Bd7 {[%clk 0:02:46.4]} 9. a4 {[%clk 0:02:43.7]} 9... Be7 {[%clk 0:02:45.2]}
10. h3 {[%clk 0:02:40.3]} 10... Nf6 {[%clk 0:02:28.1]} 11. Nb3 {[%clk 0:02:38]}
11... O-O {[%clk 0:02:17.8]} 12. a5 {[%clk 0:02:27.4]} 12... Rfd8 {[%clk
0:02:12.6]} 13. Be3 {[%clk 0:02:26.2]} 13... Qc8 {[%clk 0:02:05.1]} 14. Bb6
{[%clk 0:02:24.4]} 14... Re8 {[%clk 0:02:05.4]} 15. f4 {[%clk 0:02:23.1]} 15...
Bd8 {[%clk 0:02:04.1]} 16. Be3 {[%clk 0:02:17.6]} 16... Bc7 {[%clk 0:02:00.1]}
17. g4 {[%clk 0:02:10.4]} 17... Kh8 {[%clk 0:01:55.3]} 18. g5 {[%clk 0:02:02.3]}
18... Ng8 {[%clk 0:01:55]} 19. Qh5 {[%clk 0:02:02.3]} 19... g6 {[%clk
0:01:54.8]} 20. Qh4 {[%clk 0:02:00.2]} 20... Qd8 {[%clk 0:01:48.8]} 21. Rad1
{[%clk 0:01:37.4]} 21... Nge7 {[%clk 0:01:36.9]} 22. Nd4 {[%clk 0:01:21.5]}
22... Bxa5 {[%clk 0:01:08.7]} 23. f5 {[%clk 0:01:18.1]} 23... Bb6 {[%clk
0:00:56]} 24. fxe6 {[%clk 0:00:56.9]} 24... Bxe6 {[%clk 0:00:56.9]} 25. Kh1
{[%clk 0:00:39.8]} 25... Nxd4 {[%clk 0:00:53.2]} 26. Rxd4 {[%clk 0:00:35.1]}
26... Bxd4 {[%clk 0:00:54.1]} 27. Bxd4+ {[%clk 0:00:34.8]} 27... Kg8 {[%clk
0:00:39.3]} 28. Qh6 {[%clk 0:00:33.6]} 1-0

[Event "Late-Titled-Tuesday-Blitz-August-29-2023"]
[Site "Chess.com"]
[Date "2023.08.29"]
[Round "5"]
[White "Karttunen"]
[Black "Rinqed222"]
[Result "1-0"]
[WhiteElo "2586"]
[BlackElo "2229"]
[TimeControl "180+1"]
[EndTime "14:53:37 PDT"]
[Termination "Karttunen won by resignation"]

1. e4 {[%clk 0:03:00.9]} 1... e6 {[%clk 0:03:00.1]} 2. d4 {[%clk 0:03:00.5]}
2... d5 {[%clk 0:03:01]} 3. Nc3 {[%clk 0:03:00.1]} 3... Nf6 {[%clk 0:03:00.4]}
4. Bg5 {[%clk 0:02:59.2]} 4... Bb4 {[%clk 0:03:00]} 5. e5 {[%clk 0:02:59.1]}
5... h6 {[%clk 0:03:00]} 6. Bc1 {[%clk 0:02:56.1]} 6... Bxc3+ {[%clk 0:02:40.8]}
7. bxc3 {[%clk 0:02:55.7]} 7... Ne4 {[%clk 0:02:38.8]} 8. Qg4 {[%clk 0:02:53.9]}
8... g6 {[%clk 0:02:30.9]} 9. Ne2 {[%clk 0:02:38.1]} 9... c5 {[%clk 0:02:11.4]}
10. f3 {[%clk 0:02:36.1]} 10... Ng5 {[%clk 0:02:11.3]} 11. h4 {[%clk 0:02:33.6]}
11... Nh7 {[%clk 0:02:11.3]} 12. Bxh6 {[%clk 0:02:22]} 12... Rg8 {[%clk
0:02:02.1]} 13. Bd2 {[%clk 0:02:05.6]} 13... Nc6 {[%clk 0:01:57.1]} 14. h5
{[%clk 0:02:05.3]} 14... Qa5 {[%clk 0:01:13.2]} 15. a4 {[%clk 0:01:30.6]} 15...
Bd7 {[%clk 0:01:08.7]} 16. Nf4 {[%clk 0:01:13.2]} 16... Nf8 {[%clk 0:01:04.3]}
17. hxg6 {[%clk 0:00:59.9]} 17... Nxg6 {[%clk 0:00:58.5]} 18. Nxg6 {[%clk
0:00:46.9]} 18... fxg6 {[%clk 0:00:59.4]} 19. Qg5 {[%clk 0:00:42.2]} 19... Ne7
{[%clk 0:00:38.8]} 20. Rh7 {[%clk 0:00:41.2]} 20... Qd8 {[%clk 0:00:36.1]} 21.
Qf6 {[%clk 0:00:36.7]} 21... Rf8 {[%clk 0:00:33.1]} 22. Rh8 {[%clk 0:00:37]}
22... Rxh8 {[%clk 0:00:25.2]} 23. Qxh8+ {[%clk 0:00:37.2]} 23... Kf7 {[%clk
0:00:25.7]} 24. Qh7+ {[%clk 0:00:37.4]} 24... Kf8 {[%clk 0:00:24.6]} 25. Bh6+
{[%clk 0:00:36.4]} 25... Ke8 {[%clk 0:00:23.7]} 26. Qh8+ {[%clk 0:00:36.4]}
26... Kf7 {[%clk 0:00:23.9]} 27. Qg7+ {[%clk 0:00:36.4]} 1-0

[Event "Late-Titled-Tuesday-Blitz-August-29-2023"]
[Site "Chess.com"]
[Date "2023.08.29"]
[Round "5"]
[White "Jospem"]
[Black "oskariot"]
[Result "1-0"]
[WhiteElo "3043"]
[BlackElo "2649"]
[TimeControl "180+1"]
[EndTime "14:53:38 PDT"]
[Termination "Jospem won on time"]

1. e4 {[%clk 0:03:00.9]} 1... d6 {[%clk 0:02:48.4]} 2. d4 {[%clk 0:02:59.4]}
2... Nf6 {[%clk 0:02:40.8]} 3. Bd3 {[%clk 0:02:57.9]} 3... e5 {[%clk 0:02:36.5]}
4. c3 {[%clk 0:02:58.5]} 4... d5 {[%clk 0:02:27.9]} 5. dxe5 {[%clk 0:02:57.7]}
5... Nxe4 {[%clk 0:02:25.8]} 6. Nf3 {[%clk 0:02:57.4]} 6... Nc6 {[%clk
0:02:19.1]} 7. Nbd2 {[%clk 0:02:55.2]} 7... Nc5 {[%clk 0:02:10.8]} 8. Be2 {[%clk
0:02:53.6]} 8... Be7 {[%clk 0:02:09.7]} 9. O-O {[%clk 0:02:53.4]} 9... O-O
{[%clk 0:02:09.3]} 10. Nb3 {[%clk 0:02:53.9]} 10... Ne4 {[%clk 0:02:09.3]} 11.
Re1 {[%clk 0:02:49.3]} 11... Bf5 {[%clk 0:02:07.4]} 12. Nfd4 {[%clk 0:02:49.4]}
12... Nxd4 {[%clk 0:02:06]} 13. cxd4 {[%clk 0:02:47.7]} 13... Bb4 {[%clk
0:01:50.6]} 14. f3 {[%clk 0:02:36.6]} 14... Ng5 {[%clk 0:01:35]} 15. Bd2 {[%clk
0:02:32.7]} 15... Bxd2 {[%clk 0:01:31.3]} 16. Qxd2 {[%clk 0:02:33.6]} 16... Ne6
{[%clk 0:01:31.7]} 17. g3 {[%clk 0:02:33.5]} 17... b6 {[%clk 0:01:20.6]} 18.
Rac1 {[%clk 0:02:33.1]} 18... c5 {[%clk 0:01:10.4]} 19. Qe3 {[%clk 0:02:11.2]}
19... Rc8 {[%clk 0:00:49.1]} 20. Red1 {[%clk 0:02:08.4]} 20... c4 {[%clk
0:00:23.1]} 21. Nd2 {[%clk 0:02:08.4]} 21... h5 {[%clk 0:00:23.7]} 22. Nf1
{[%clk 0:02:06.5]} 22... b5 {[%clk 0:00:22.8]} 23. Qf2 {[%clk 0:02:04.3]} 23...
f6 {[%clk 0:00:16.1]} 24. f4 {[%clk 0:01:33]} 24... fxe5 {[%clk 0:00:16.2]} 25.
dxe5 {[%clk 0:01:33.9]} 25... d4 {[%clk 0:00:16.4]} 26. Bxh5 {[%clk 0:01:34.6]}
26... d3 {[%clk 0:00:16.2]} 27. Ne3 {[%clk 0:01:35.3]} 27... Be4 {[%clk
0:00:14.4]} 28. Bg4 {[%clk 0:01:31.9]} 28... Qe7 {[%clk 0:00:12.4]} 29. Re1
{[%clk 0:01:19.4]} 29... Rcd8 {[%clk 0:00:11.1]} 30. Rcd1 {[%clk 0:01:19.7]}
30... Ba8 {[%clk 0:00:06]} 31. Bf3 {[%clk 0:01:19.1]} 31... Bxf3 {[%clk
0:00:05.4]} 32. Qxf3 {[%clk 0:01:20]} 32... Nd4 {[%clk 0:00:04.2]} 33. Qg2
{[%clk 0:01:18.6]} 33... Qe6 {[%clk 0:00:01.2]} 34. Kh1 {[%clk 0:01:18.8]} 34...
b4 {[%clk 0:00:01.2]} 35. Qe4 {[%clk 0:01:18.9]} 1-0

[Event "Late-Titled-Tuesday-Blitz-August-29-2023"]
[Site "Chess.com"]
[Date "2023.08.29"]
[Round "5"]
[White "subham777"]
[Black "bascheyaro"]
[Result "0-1"]
[WhiteElo "2528"]
[BlackElo "2820"]
[TimeControl "180+1"]
[EndTime "14:53:41 PDT"]
[Termination "bascheyaro won on time"]

1. e4 {[%clk 0:03:00.9]} 1... e6 {[%clk 0:03:00]} 2. Nf3 {[%clk 0:03:00.6]} 2...
d5 {[%clk 0:03:00.3]} 3. Nc3 {[%clk 0:03:01]} 3... c5 {[%clk 0:03:00.3]} 4. exd5
{[%clk 0:03:00.2]} 4... exd5 {[%clk 0:03:00.4]} 5. d4 {[%clk 0:03:00.8]} 5...
Nf6 {[%clk 0:03:00.5]} 6. Be2 {[%clk 0:02:56.4]} 6... Nc6 {[%clk 0:03:00.1]} 7.
O-O {[%clk 0:02:56.1]} 7... h6 {[%clk 0:02:58.6]} 8. Re1 {[%clk 0:02:54.9]} 8...
Be6 {[%clk 0:02:58.7]} 9. Bf4 {[%clk 0:02:42.3]} 9... c4 {[%clk 0:02:53.4]} 10.
Ne5 {[%clk 0:02:40.9]} 10... Bb4 {[%clk 0:02:49.6]} 11. Nxc6 {[%clk 0:02:21.7]}
11... bxc6 {[%clk 0:02:49.5]} 12. Bg4 {[%clk 0:02:15.2]} 12... Nxg4 {[%clk
0:02:43.4]} 13. Qxg4 {[%clk 0:02:16.1]} 13... O-O {[%clk 0:02:43.6]} 14. Qg3
{[%clk 0:02:12.7]} 14... Qf6 {[%clk 0:02:36.3]} 15. Be5 {[%clk 0:02:11]} 15...
Qg5 {[%clk 0:02:36.7]} 16. Qxg5 {[%clk 0:01:40]} 16... hxg5 {[%clk 0:02:37.6]}
17. Re3 {[%clk 0:01:40.3]} 17... Rfe8 {[%clk 0:02:36.4]} 18. Rae1 {[%clk
0:01:36]} 18... Bf5 {[%clk 0:02:35.5]} 19. R3e2 {[%clk 0:01:18.3]} 19... f6
{[%clk 0:02:25.7]} 20. Bg3 {[%clk 0:01:16.2]} 20... Kf7 {[%clk 0:02:23.8]} 21.
a3 {[%clk 0:00:49.5]} 21... Ba5 {[%clk 0:02:20.3]} 22. Kf1 {[%clk 0:00:31.3]}
22... Rxe2 {[%clk 0:02:13.9]} 23. Rxe2 {[%clk 0:00:30.5]} 23... Re8 {[%clk
0:02:13.7]} 24. Rd2 {[%clk 0:00:30.1]} 24... Re7 {[%clk 0:02:09.8]} 25. f3
{[%clk 0:00:27.3]} 25... Rb7 {[%clk 0:02:08.7]} 26. Re2 {[%clk 0:00:06]} 26...
Rxb2 {[%clk 0:02:08.1]} 27. Na4 {[%clk 0:00:05.5]} 27... Rxc2 {[%clk 0:02:05.4]}
28. Rxc2 {[%clk 0:00:06.4]} 28... Bxc2 {[%clk 0:02:05.6]} 29. Nc5 {[%clk
0:00:07.3]} 29... Bc3 {[%clk 0:02:00.1]} 30. Bf2 {[%clk 0:00:06.4]} 30... Bb2
{[%clk 0:02:00.2]} 31. a4 {[%clk 0:00:06]} 31... c3 {[%clk 0:01:58.1]} 32. Ke2
{[%clk 0:00:05.8]} 32... Bb1 {[%clk 0:01:55]} 33. Be3 {[%clk 0:00:04.1]} 33...
Ba3 {[%clk 0:01:42.1]} 34. Nd3 {[%clk 0:00:03.2]} 34... Bc2 {[%clk 0:01:38.3]}
35. a5 {[%clk 0:00:03.4]} 35... Ba4 {[%clk 0:01:37.1]} 36. g4 {[%clk 0:00:03.6]}
36... Bb5 {[%clk 0:01:37.4]} 37. Bf2 {[%clk 0:00:02.8]} 37... c2 {[%clk
0:01:37]} 38. Be3 {[%clk 0:00:03.2]} 38... c1=Q {[%clk 0:01:35.9]} 39. Bxc1
{[%clk 0:00:03.2]} 39... Bxc1 {[%clk 0:01:36.8]} 40. h3 {[%clk 0:00:03.1]} 40...
a6 {[%clk 0:01:36.2]} 41. h4 {[%clk 0:00:02]} 41... gxh4 {[%clk 0:01:36.2]} 0-1

[Event "Late-Titled-Tuesday-Blitz-August-29-2023"]
[Site "Chess.com"]
[Date "2023.08.29"]
[Round "5"]
[White "h4parah5"]
[Black "enriquetejedor"]
[Result "0-1"]
[WhiteElo "2953"]
[BlackElo "2716"]
[TimeControl "180+1"]
[EndTime "14:53:43 PDT"]
[Termination "enriquetejedor won by resignation"]

1. e4 {[%clk 0:03:00.9]} 1... c5 {[%clk 0:02:55.6]} 2. Nf3 {[%clk 0:03:00.7]}
2... d6 {[%clk 0:02:52.7]} 3. Nc3 {[%clk 0:03:00.3]} 3... Nc6 {[%clk 0:02:52.5]}
4. d4 {[%clk 0:02:59.8]} 4... cxd4 {[%clk 0:02:51.8]} 5. Nxd4 {[%clk 0:03:00.7]}
5... Nf6 {[%clk 0:02:52.1]} 6. Bg5 {[%clk 0:03:00.9]} 6... e6 {[%clk 0:02:47.5]}
7. Qd3 {[%clk 0:03:00.2]} 7... a6 {[%clk 0:02:40.8]} 8. Nxc6 {[%clk 0:02:53.4]}
8... bxc6 {[%clk 0:02:40.5]} 9. O-O-O {[%clk 0:02:54.2]} 9... Qa5 {[%clk
0:02:36.6]} 10. f4 {[%clk 0:02:41.8]} 10... Nd7 {[%clk 0:02:27.9]} 11. Bh4
{[%clk 0:02:28.4]} 11... Rb8 {[%clk 0:02:20.1]} 12. Qe3 {[%clk 0:02:20.9]} 12...
Qb6 {[%clk 0:01:46.9]} 13. Qxb6 {[%clk 0:02:20.4]} 13... Nxb6 {[%clk 0:01:43.5]}
14. Be2 {[%clk 0:02:19.7]} 14... d5 {[%clk 0:01:41.6]} 15. b3 {[%clk 0:02:10.4]}
15... Ba3+ {[%clk 0:01:39.2]} 16. Kb1 {[%clk 0:02:09.2]} 16... O-O {[%clk
0:01:38.9]} 17. Bf3 {[%clk 0:01:55.1]} 17... a5 {[%clk 0:01:36.2]} 18. Bf2
{[%clk 0:01:45.9]} 18... Bb4 {[%clk 0:01:31.2]} 19. Bd4 {[%clk 0:01:43.6]} 19...
Nc4 {[%clk 0:01:12.5]} 20. Na4 {[%clk 0:01:36]} 20... Na3+ {[%clk 0:01:06.4]}
21. Kb2 {[%clk 0:01:33.9]} 21... Nb5 {[%clk 0:01:05.2]} 22. Bc5 {[%clk
0:01:30.9]} 22... Re8 {[%clk 0:00:59.5]} 23. a3 {[%clk 0:01:24.2]} 23... Nxa3
{[%clk 0:00:54.9]} 24. e5 {[%clk 0:01:16.3]} 24... Nc4+ {[%clk 0:00:52.2]} 25.
Ka2 {[%clk 0:01:16.1]} 25... Bxc5 {[%clk 0:00:44.7]} 26. Nxc5 {[%clk 0:01:15]}
26... Nb6 {[%clk 0:00:41.6]} 27. Kb2 {[%clk 0:01:08.7]} 27... a4 {[%clk
0:00:39.8]} 28. Kc3 {[%clk 0:01:07]} 28... axb3 {[%clk 0:00:39.2]} 29. cxb3
{[%clk 0:01:07.9]} 29... Nd7 {[%clk 0:00:36.6]} 30. Nxd7 {[%clk 0:01:07]} 30...
Bxd7 {[%clk 0:00:37.5]} 31. Ra1 {[%clk 0:01:07.3]} 31... Rb7 {[%clk 0:00:37]}
32. Ra3 {[%clk 0:01:06.1]} 32... Reb8 {[%clk 0:00:35.2]} 33. Rha1 {[%clk
0:01:05.7]} 33... c5 {[%clk 0:00:34.9]} 34. Bd1 {[%clk 0:01:05.7]} 34... h6
{[%clk 0:00:34]} 35. Ra5 {[%clk 0:01:04.6]} 35... Rc7 {[%clk 0:00:33.1]} 36. Ra7
{[%clk 0:01:04.2]} 36... Rbc8 {[%clk 0:00:33]} 37. Rxc7 {[%clk 0:01:03.4]} 37...
Rxc7 {[%clk 0:00:33.9]} 38. Ra8+ {[%clk 0:01:02.3]} 38... Kh7 {[%clk 0:00:33.5]}
39. Bc2+ {[%clk 0:01:02.5]} 39... g6 {[%clk 0:00:33.6]} 40. h4 {[%clk 0:01:03]}
40... Bc6 {[%clk 0:00:33.3]} 41. g3 {[%clk 0:01:02.1]} 41... Bxa8 {[%clk
0:00:32.5]} 0-1

[Event "Late-Titled-Tuesday-Blitz-August-29-2023"]
[Site "Chess.com"]
[Date "2023.08.29"]
[Round "5"]
[White "Incognito_Knight"]
[Black "vi_pranav"]
[Result "1-0"]
[WhiteElo "2812"]
[BlackElo "2954"]
[TimeControl "180+1"]
[EndTime "14:53:45 PDT"]
[Termination "Incognito_Knight won by resignation"]

1. b3 {[%clk 0:03:00]} 1... e5 {[%clk 0:02:58.9]} 2. Bb2 {[%clk 0:03:00]} 2...
Nc6 {[%clk 0:02:59.4]} 3. c4 {[%clk 0:03:00.4]} 3... Nf6 {[%clk 0:02:59.6]} 4.
Nf3 {[%clk 0:03:00.6]} 4... e4 {[%clk 0:02:56.2]} 5. Nd4 {[%clk 0:03:00.5]} 5...
Bc5 {[%clk 0:02:56.5]} 6. Nf5 {[%clk 0:03:00.4]} 6... O-O {[%clk 0:02:52.3]} 7.
Ng3 {[%clk 0:02:59.4]} 7... Re8 {[%clk 0:02:50.7]} 8. Nc3 {[%clk 0:02:56.6]}
8... d6 {[%clk 0:02:49.3]} 9. e3 {[%clk 0:02:55.7]} 9... a6 {[%clk 0:02:42.4]}
10. a3 {[%clk 0:02:53.3]} 10... Ba7 {[%clk 0:02:38.5]} 11. Qb1 {[%clk
0:02:51.7]} 11... Qe7 {[%clk 0:02:26.5]} 12. Be2 {[%clk 0:02:51.6]} 12... Nd8
{[%clk 0:02:12.4]} 13. O-O {[%clk 0:02:39.2]} 13... c6 {[%clk 0:02:08.1]} 14. f3
{[%clk 0:02:28.4]} 14... exf3 {[%clk 0:02:04]} 15. Bxf3 {[%clk 0:02:28.2]} 15...
Qf8 {[%clk 0:01:45.9]} 16. Nce4 {[%clk 0:02:23.6]} 16... Nxe4 {[%clk 0:01:44.8]}
17. Bxe4 {[%clk 0:02:24.3]} 17... g6 {[%clk 0:01:39]} 18. Nh5 {[%clk 0:02:22]}
18... f5 {[%clk 0:01:29.7]} 19. Nf6+ {[%clk 0:02:18.8]} 19... Kf7 {[%clk
0:01:30.1]} 20. Bxf5 {[%clk 0:01:32.6]} 20... Bxf5 {[%clk 0:01:22.2]} 21. Rxf5
{[%clk 0:01:33.2]} 21... gxf5 {[%clk 0:01:22.9]} 22. Qxf5 {[%clk 0:01:33.2]}
22... Ne6 {[%clk 0:01:00.1]} 23. Rf1 {[%clk 0:00:50.4]} 23... Ng7 {[%clk
0:00:34.3]} 24. Qd7+ {[%clk 0:00:41]} 24... Kg6 {[%clk 0:00:28.1]} 25. Qg4+
{[%clk 0:00:36.9]} 25... Kf7 {[%clk 0:00:28.1]} 26. Nxh7+ {[%clk 0:00:33.6]}
26... Ke7 {[%clk 0:00:26]} 27. Nxf8 {[%clk 0:00:32.1]} 1-0

[Event "Late-Titled-Tuesday-Blitz-August-29-2023"]
[Site "Chess.com"]
[Date "2023.08.29"]
[Round "5"]
[White "zsoltkorpics"]
[Black "MikeSailer"]
[Result "1-0"]
[WhiteElo "2381"]
[BlackElo "2168"]
[TimeControl "180+1"]
[EndTime "14:53:46 PDT"]
[Termination "zsoltkorpics won by checkmate"]

1. e4 {[%clk 0:03:00.9]} 1... d5 {[%clk 0:02:59.3]} 2. exd5 {[%clk 0:03:00.6]}
2... Qxd5 {[%clk 0:02:59]} 3. Nc3 {[%clk 0:03:00.4]} 3... Qd6 {[%clk 0:02:59]}
4. d4 {[%clk 0:03:00.3]} 4... c6 {[%clk 0:02:57.2]} 5. Nf3 {[%clk 0:02:59.9]}
5... Bg4 {[%clk 0:02:56.2]} 6. h3 {[%clk 0:02:59.3]} 6... Bh5 {[%clk 0:02:54]}
7. g4 {[%clk 0:02:33.7]} 7... Bg6 {[%clk 0:02:47.1]} 8. Ne5 {[%clk 0:02:30.7]}
8... Nd7 {[%clk 0:02:39.5]} 9. Nxg6 {[%clk 0:02:27.7]} 9... hxg6 {[%clk
0:02:38.7]} 10. Bg2 {[%clk 0:02:22.1]} 10... e6 {[%clk 0:02:34.3]} 11. Ne4
{[%clk 0:02:19.7]} 11... Qc7 {[%clk 0:02:31.7]} 12. Qf3 {[%clk 0:02:18.7]} 12...
Be7 {[%clk 0:02:22.9]} 13. Bf4 {[%clk 0:02:14.7]} 13... Qa5+ {[%clk 0:02:18.4]}
14. Bd2 {[%clk 0:02:13.9]} 14... Qb6 {[%clk 0:02:15.2]} 15. O-O-O {[%clk
0:02:01.8]} 15... Ngf6 {[%clk 0:02:01.3]} 16. g5 {[%clk 0:01:49.3]} 16... Nxe4
{[%clk 0:01:45.6]} 17. Qxe4 {[%clk 0:01:50.2]} 17... O-O-O {[%clk 0:01:38.4]}
18. h4 {[%clk 0:01:43.8]} 18... Kb8 {[%clk 0:01:12.1]} 19. Bf4+ {[%clk
0:01:41.9]} 19... Ka8 {[%clk 0:01:13]} 20. Rh3 {[%clk 0:01:42.3]} 20... Qa5
{[%clk 0:01:02.6]} 21. Qxc6 {[%clk 0:01:07.3]} 21... Qb6 {[%clk 0:00:30.9]} 22.
Qa4 {[%clk 0:01:03.3]} 22... Qb4 {[%clk 0:00:12.8]} 23. Rb3 {[%clk 0:00:51.9]}
23... Qxa4 {[%clk 0:00:03.5]} 24. Bxb7# {[%clk 0:00:50.9]} 1-0

[Event "Late-Titled-Tuesday-Blitz-August-29-2023"]
[Site "Chess.com"]
[Date "2023.08.29"]
[Round "5"]
[White "GGuseinov"]
[Black "CrushingKings"]
[Result "1-0"]
[WhiteElo "2865"]
[BlackElo "2569"]
[TimeControl "180+1"]
[EndTime "14:53:49 PDT"]
[Termination "GGuseinov won by resignation"]

1. e4 {[%clk 0:02:54.1]} 1... g6 {[%clk 0:02:59.4]} 2. d4 {[%clk 0:02:53.7]}
2... Bg7 {[%clk 0:02:59.7]} 3. Nc3 {[%clk 0:02:54.6]} 3... c6 {[%clk 0:03:00.2]}
4. Nf3 {[%clk 0:02:52.7]} 4... d5 {[%clk 0:03:00.7]} 5. Be2 {[%clk 0:02:53.1]}
5... dxe4 {[%clk 0:03:01.1]} 6. Nxe4 {[%clk 0:02:54]} 6... Nf6 {[%clk
0:03:01.4]} 7. Nxf6+ {[%clk 0:02:52.5]} 7... exf6 {[%clk 0:03:02.3]} 8. O-O
{[%clk 0:02:51.8]} 8... O-O {[%clk 0:03:03]} 9. h3 {[%clk 0:02:51.6]} 9... Re8
{[%clk 0:03:03.3]} 10. c3 {[%clk 0:02:46.6]} 10... a5 {[%clk 0:03:03.2]} 11. a4
{[%clk 0:02:43.9]} 11... Na6 {[%clk 0:03:03.8]} 12. Re1 {[%clk 0:02:44]} 12...
Nc7 {[%clk 0:03:04.3]} 13. Bf4 {[%clk 0:02:37.3]} 13... Nd5 {[%clk 0:03:04.5]}
14. Bg3 {[%clk 0:02:37.6]} 14... Bf5 {[%clk 0:03:04.7]} 15. Qd2 {[%clk
0:02:35.7]} 15... Qd7 {[%clk 0:03:04.5]} 16. Bd3 {[%clk 0:02:35.3]} 16... Bf8
{[%clk 0:02:59.9]} 17. Bxf5 {[%clk 0:02:27.9]} 17... Qxf5 {[%clk 0:02:59.3]} 18.
Rxe8 {[%clk 0:02:28]} 18... Rxe8 {[%clk 0:02:57]} 19. Ne1 {[%clk 0:02:14.4]}
19... Nb6 {[%clk 0:02:39.8]} 20. b3 {[%clk 0:02:09.2]} 20... c5 {[%clk 0:02:40]}
21. Nc2 {[%clk 0:02:06.1]} 21... c4 {[%clk 0:02:13.1]} 22. Ne3 {[%clk
0:02:00.7]} 22... Rxe3 {[%clk 0:02:13.2]} 23. Qxe3 {[%clk 0:01:53.4]} 23... cxb3
{[%clk 0:02:13.2]} 24. Qe2 {[%clk 0:01:26.7]} 24... Nc4 {[%clk 0:00:27.9]} 25.
Qxc4 {[%clk 0:01:26.4]} 25... b2 {[%clk 0:00:28.2]} 26. Rf1 {[%clk 0:01:27.1]}
26... b1=Q {[%clk 0:00:26]} 27. Rxb1 {[%clk 0:01:27.5]} 27... Qxb1+ {[%clk
0:00:26.7]} 28. Kh2 {[%clk 0:01:28.3]} 28... Kg7 {[%clk 0:00:15.5]} 29. d5
{[%clk 0:01:14.3]} 29... Qb6 {[%clk 0:00:15.5]} 30. Qc7 {[%clk 0:01:12.5]} 30...
Bc5 {[%clk 0:00:08.7]} 31. d6 {[%clk 0:01:06]} 31... Bxf2 {[%clk 0:00:06.8]} 32.
Bxf2 {[%clk 0:01:03.5]} 32... Qxf2 {[%clk 0:00:03.2]} 33. d7 {[%clk 0:01:03.8]}
1-0

[Event "Late-Titled-Tuesday-Blitz-August-29-2023"]
[Site "Chess.com"]
[Date "2023.08.29"]
[Round "5"]
[White "emiliocordova"]
[Black "Mikhail_Golubev"]
[Result "0-1"]
[WhiteElo "2847"]
[BlackElo "2584"]
[TimeControl "180+1"]
[EndTime "14:53:51 PDT"]
[Termination "Mikhail_Golubev won by resignation"]

1. e4 {[%clk 0:02:59.3]} 1... c5 {[%clk 0:02:59.7]} 2. Nc3 {[%clk 0:02:58.9]}
2... d6 {[%clk 0:02:57.5]} 3. f4 {[%clk 0:02:59]} 3... Nc6 {[%clk 0:02:54.2]} 4.
Nf3 {[%clk 0:02:59.2]} 4... g6 {[%clk 0:02:52.8]} 5. Bb5 {[%clk 0:02:58.5]} 5...
Bd7 {[%clk 0:02:51]} 6. O-O {[%clk 0:02:58.4]} 6... Bg7 {[%clk 0:02:51.1]} 7. d3
{[%clk 0:02:58.3]} 7... a6 {[%clk 0:02:46.8]} 8. Bxc6 {[%clk 0:02:57.9]} 8...
Bxc6 {[%clk 0:02:47.4]} 9. f5 {[%clk 0:02:58.2]} 9... gxf5 {[%clk 0:02:37.5]}
10. exf5 {[%clk 0:02:44.8]} 10... Nf6 {[%clk 0:02:31.2]} 11. Ng5 {[%clk
0:02:22.2]} 11... Rg8 {[%clk 0:02:13.7]} 12. Qe2 {[%clk 0:02:20.5]} 12... Qd7
{[%clk 0:02:09.9]} 13. Nce4 {[%clk 0:01:59.2]} 13... Nxe4 {[%clk 0:01:48.3]} 14.
dxe4 {[%clk 0:01:56.4]} 14... Bf6 {[%clk 0:01:35.4]} 15. Nxh7 {[%clk 0:01:51.5]}
15... O-O-O {[%clk 0:01:34.6]} 16. Nxf6 {[%clk 0:01:45.6]} 16... exf6 {[%clk
0:01:35.5]} 17. Rf4 {[%clk 0:01:42.2]} 17... Rde8 {[%clk 0:01:32.1]} 18. c4
{[%clk 0:01:41]} 18... Re7 {[%clk 0:00:56]} 19. b3 {[%clk 0:01:35.5]} 19... Qe8
{[%clk 0:00:52.4]} 20. Bb2 {[%clk 0:01:12.5]} 20... Bxe4 {[%clk 0:00:52]} 21.
Rg4 {[%clk 0:01:03.8]} 21... Rxg4 {[%clk 0:00:33.8]} 22. Qxg4 {[%clk 0:01:04.7]}
22... Bc6 {[%clk 0:00:31.3]} 23. Kf2 {[%clk 0:00:44.7]} 23... Re4 {[%clk
0:00:27.7]} 24. Qf3 {[%clk 0:00:34.7]} 24... Rxc4 {[%clk 0:00:22.3]} 25. Re1
{[%clk 0:00:34.1]} 25... Rc2+ {[%clk 0:00:16.2]} 26. Re2 {[%clk 0:00:34.1]}
26... Bxf3 {[%clk 0:00:15.4]} 0-1